[Event "13th Chennai Open 2022"]
[Site "Chennai"]
[Date "2022.06.20"]
[Round "1.7"]
[White "Tarun K C"]
[Black "Ajay Karthikeyan"]
[Result "0-1"]
[ECO "E90"]
[WhiteElo "1363"]
[BlackElo "2436"]
[Annotator "TA"]
[PlyCount "84"]
[EventDate "2022.06.19"]
[EventType "swiss"]
[EventCountry "IND"]
[SourceTitle "playchess.com"]
[Source "ChessBase"]
[SourceQuality "1"]
[TimeControl "5400+30"]

{[%evp 13,84,20,48,35,29,14,26,15,27,0,0,0,0,0,4,-103,-121,-100,0,-30,-20,-16,-15,-16,-20,-12,-22,-194,-186,-186,-175,-234,-241,-275,-269,-272,-273,-270,-273,-279,-275,-281,-264,-260,-263,-402,-268,-480,-471,-447,-492,-478,-440,-492,-478,-531,-516,-511,-504,-481,-481,-622,-616,-599,-552,-990,-971,-983,-991,-884,-904,-833,-747]} 1. d4 {[%emt 0:00:03]} Nf6 {[%emt 0:00:11]} 2. c4 {[%emt 0:00:06]} g6 {[%emt 0:00:58]} 3. Nc3 {[%emt 0:00:15]} Bg7 {[%emt 0:00:16]} 4. e4 {[%emt 0:00:23]} d6 {[%emt 0:00:05]} 5. h3 {[%emt 0:00:11]} O-O {[%emt 0:01:00]} 6. Be3 {[%emt 0:00:21]} Na6 {[%emt 0:00:51]} 7. Nf3 {[%emt 0:05:36]} c5 {[%emt 0:11:32]} 8. d5 {[%emt 0:01:32] E90: King's Indian: Classical: Early deviations and 6 h3.} e6 {[%emt 0:02:37] 8...e6 is better than 8...Nc7.} 9. Be2 {[%emt 0:04:23]} exd5 {[%emt 0:06:18]} 10. cxd5 {[%emt 0:03:30] White has an edge.} Nc7 {[%emt 0:01:50]} 11. O-O {[%emt 0:00:28]} Re8 {[%emt 0:03:03]} 12. Nd2 {[%emt 0:01:05]} b5 {[%emt 0:10:30][%cal Bb7b5,Bb5b4][%mdl 32]} 13. Qc2 {[%emt 0:11:47] [#]} Bd7 $146 {[%emt 0:05:16]} ({Predecessor:} 13... a6 14. a3 Rb8 15. b4 c4 16. Rad1 Na8 17. Nf3 Qe7 18. Nd4 Bb7 19. Bf3 Nc7 {1-0 (41) Da Silva,J (1762)-Santos Filho,T (2086) Florianopolis 2019}) 14. Bf4 {[%emt 0:01:57]} (14. a3 $11) 14... b4 $17 {[%emt 0:01:37]} 15. Nd1 {[%emt 0:03:14]} Bb5 {[%emt 0:13:21]} (15... Nfxd5 $17 16. Bxd6 Ne6 $1) 16. Bc4 {[%emt 0:01:34]} Bxc4 {[%emt 0:03:18]} 17. Qxc4 {[%emt 0:00:53]} Qe7 {[%emt 0:00:02][%cal Rf6e4]} 18. Bg5 $1 {[%emt 0:06:52]} h6 {[%emt 0:01:17]} 19. Bxf6 {[%emt 0:00:13]} Qxf6 {[%emt 0:00:06]} 20. Nf3 $2 {[%emt 0:01:15] [#] Inhibits Qd4. This costs White the game.} (20. Rb1 $11 {and White has nothing to worry.}) 20... Qf4 $1 $36 {[%emt 0:07:08][%mdl 2048] White is under strong pressure.} 21. Re1 {[%emt 0:04:19] [#]} f5 $1 {[%emt 0:00:15]} 22. Rb1 {[%emt 0:02:58]} (22. a3 {is a better defense.}) 22... Rxe4 {[%emt 0:01:21]} 23. Rxe4 {[%emt 0:00:10]} Qxe4 {[%emt 0:04:35]} 24. Qxe4 {[%emt 0:00:18]} fxe4 {[%emt 0:00:06]} 25. Nd2 {[%emt 0:00:20]} Nxd5 {[%emt 0:00:04]} 26. Nxe4 {[%emt 0:00:33]} Re8 {[%emt 0:02:20]} 27. f3 {[%emt 0:00:47]} Bd4+ {[%emt 0:00:04]} 28. Kf1 {[%emt 0:00:40]} Re6 {[%emt 0:02:01]} 29. b3 {[%emt 0:00:50]} (29. a3 $142) 29... Kf8 {[%emt 0:01:52]} 30. Ndf2 $2 {[%emt 0:01:01]} (30. Rc1 {was necessary.}) 30... Ne3+ {[%emt 0:02:07] Black is clearly winning.} 31. Kg1 {[%emt 0:00:54]} d5 {[%emt 0:19:59]} 32. Ng3 {[%emt 0:00:40]} Nf5 {[%emt 0:00:00]} 33. Nxf5 {[%emt 0:00:36]} gxf5 {[%emt 0:00:00][%mdl 4096] Endgame KRB-KRN} 34. Kf1 {[%emt 0:00:05] Against Re2} Ra6 {[%emt 0:00:00]} 35. Nd3 {[%emt 0:00:41]} Rxa2 {[%emt 0:00:00]} 36. Nf4 {[%emt 0:00:11]} Kf7 {[%emt 0:00:00] Against Ne6} 37. Rd1 {[%emt 0:02:18]} Rf2+ {[%emt 0:00:00]} 38. Ke1 {[%emt 0:00:30][%cal Od1d4] aiming for Rxd4!} Rb2 {[%emt 0:00:00]} 39. Rd3 {[%emt 0:00:53]} Bc3+ {[%emt 0:00:00]} 40. Kf1 {[%emt 0:03:58]} d4 {[%emt 0:00:00]} 41. Rd1 {[%emt 0:01:28]} Rxb3 {[%emt 0:00:00] Hoping for ...c4.} 42. Nd3 {[%emt 0:00:13]} Ra3 {[%emt 0:00:00] Weighted Error Value: White=0.48/Black=0.09 (flawless)} 0-1

[Event "13th Chennai Open 2022"]
[Site "Chennai"]
[Date "2022.06.20"]
[Round "1.8"]
[White "Nitin, S.."]
[Black "Ritwik Mallavarapu"]
[Result "1-0"]
[ECO "C62"]
[WhiteElo "2399"]
[BlackElo "1344"]
[Annotator "TA"]
[PlyCount "71"]
[EventDate "2022.06.19"]
[EventType "swiss"]
[EventCountry "IND"]
[SourceTitle "playchess.com"]
[Source "ChessBase"]
[SourceQuality "1"]
[TimeControl "5400+30"]

{[%evp 12,71,41,12,21,20,24,36,56,41,49,44,41,66,54,31,49,51,80,-5,41,36,131,132,226,204,198,154,190,187,190,205,193,167,154,177,164,156,154,151,231,175,229,227,227,218,231,234,289,296,302,281,257,285,271,171,158,134,216,224,218,203]} 1. e4 {[%emt 0:00:30]} e5 {[%emt 0:00:30]} 2. Nf3 {[%emt 0:00:30]} Nc6 {[%emt 0:00:30]} 3. Nc3 {[%emt 0:00:30]} Nf6 {[%emt 0:00:30]} 4. Bb5 {[%emt 0:00:30]} d6 {[%emt 0:00:30]} 5. d4 {[%emt 0:00:30]} exd4 {[%emt 0:00:30]} 6. Nxd4 {[%emt 0:00:30]} Bd7 {[%emt 0:00:30]} 7. Bg5 {[%emt 0:00:30]} Be7 {[%emt 0:00:30][%cal Of6e4] C62: Ruy Lopez: Steinitz Defence.} 8. Qd2 {[%emt 0:00:30]} h6 {[%emt 0:00:30]} 9. Bf4 {[%emt 0:00:30]} a6 {[%emt 0:00:30] [#] White is slightly better.} 10. Bxc6 $146 {[%emt 0:00:30]} ({Predecessor:} 10. Nxc6 bxc6 11. Bc4 Be6 12. Bxe6 fxe6 13. O-O e5 14. Bg3 O-O 15. f4 Nh5 16. f5 Nxg3 17. hxg3 {0-1 (75) Konal,E (1353)-Ozeler,N (1639) Antalya 2018}) 10... bxc6 {[%emt 0:00:30]} 11. O-O-O {[%emt 0:00:30]} O-O {[%emt 0:00:30]} 12. f3 {[%emt 0:00:30]} Nh7 {[%emt 0:00:30]} 13. Be3 {[%emt 0:00:30]} Rb8 {[%emt 0:00:30]} 14. g4 {[%emt 0:00:30][%cal Oh2h4]} c5 {[%emt 0:00:30]} 15. Nde2 {[%emt 0:00:30] White is more active.} (15. Nf5 $16) 15... Bf6 {[%emt 0:00:30]} (15... Re8 $11) 16. Qe1 $14 {[%emt 0:00:30]} Qc8 {[%emt 0:00:30] [#]} ({Black should play} 16... Bb5 $14) 17. h4 $1 $16 {[%emt 0:00:30][%cal Og4g5]} Be7 {[%emt 0:00:30] Inhibits g5.} (17... Qb7 18. b3 $16) (17... Be5 $16 {is a better defense.}) 18. Nd5 {[%emt 0:00:30]} Re8 {[%emt 0:00:30]} 19. Ng3 {[%emt 0:00:30][%cal Og4g5] Black must now prevent g5!} Be6 {[%emt 0:00:30]} ({Less strong is} 19... Qb7 20. b3 $16) 20. Nxe7+ {[%emt 0:00:30]} Rxe7 {[%emt 0:00:30]} 21. g5 {[%emt 0:00:30][%cal Bg4g5,Bg5h6][%mdl 32]} Qb7 {[%emt 0:00:30]} 22. Qc3 {[%emt 0:00:30] [#] And now Nh5 would win.} Qb4 {[%emt 0:00:30]} 23. Qxb4 {[%emt 0:00:30]} ({Don't take} 23. gxh6 $6 Qxc3 24. bxc3 g6 $14) 23... cxb4 {[%emt 0:00:30]} 24. gxh6 {[%emt 0:00:30]} g6 {[%emt 0:00:30]} 25. Rhg1 {[%emt 0:00:30]} f6 {[%emt 0:00:30]} (25... Rb5 $16 26. Ne2 Nf8) 26. Ne2 {[%emt 0:00:30][%cal Bg3e2,Be2f4,Bf4d3,Bd3e5][%mdl 32]} Kf7 {[%emt 0:00:30]} (26... Nf8 $142 27. Bd4 Rh7) 27. Nf4 $18 {[%emt 0:00:30]} Rg8 {[%emt 0:00:30]} 28. Rd2 {[%emt 0:00:30]} g5 {[%emt 0:00:30]} 29. Rdg2 {[%emt 0:00:30]} Ree8 {[%emt 0:00:30]} (29... gxf4 $2 30. Rxg8 Bxa2 31. Bxf4 $18) 30. Nd3 {[%emt 0:00:30]} c5 {[%emt 0:00:30]} 31. hxg5 {[%emt 0:00:30]} fxg5 {[%emt 0:00:30]} 32. f4 {[%emt 0:00:30][%cal Rf4g5]} g4 {[%emt 0:00:30]} 33. Bd2 {[%emt 0:00:30]} Nf6 {[%emt 0:00:30] White is clearly better.} 34. e5 {[%emt 0:00:30]} dxe5 {[%emt 0:00:30]} (34... Nd7 $16 {was called for.} 35. exd6 Bf5) 35. Nxe5+ {[%emt 0:00:30]} Ke7 {[%emt 0:00:30]} 36. Be3 {[%emt 0:00:30] Weighted Error Value: White=0.16 (very precise) /Black=0.23 (precise)} 1-0

[Event "13th Chennai Open 2022"]
[Site "Chennai"]
[Date "2022.06.20"]
[Round "1.9"]
[White "Tarun N"]
[Black "Srihari L R"]
[Result "0-1"]
[ECO "A41"]
[WhiteElo "1403"]
[BlackElo "2404"]
[Annotator "TA"]
[PlyCount "110"]
[EventDate "2022.06.19"]
[EventType "swiss"]
[EventCountry "IND"]
[SourceTitle "playchess.com"]
[Source "ChessBase"]
[SourceQuality "1"]
[TimeControl "5400+30"]

{[%evp 9,109,14,28,15,28,14,24,20,2,0,0,0,27,-15,0,-14,-10,-19,44,-48,-39,-98,-89,-117,-72,-113,-110,-95,-119,-130,-112,-261,-266,-270,-254,-255,-257,-433,-438,-449,-435,-428,-433,-396,-341,-325,-262,-259,-266,-268,-271,-261,-256,-546,-246,-241,-58,-340,-333,-474,-472,-526,-431,-408,-321,-432,-373,-684,-684,-672,-669,-660,-652,-635,-504,-614,-433,-501,-483,-737,-477,-1370,-1344,-1097,-968,-29940,-6379,-5422,-10539,-5945,-5579,-29977,-29978,-29982,-29979,-29978,-29979,-29979,-29980,-29993,-29994,-29999]} 1. d4 {[%emt 0:00:05]} d6 {[%emt 0:00:11]} 2. c4 {[%emt 0:00:07]} e5 {[%emt 0:00:04]} 3. d5 {[%emt 0:01:14]} g6 {[%emt 0:00:21]} 4. Nc3 {[%emt 0:01:05]} Bg7 {[%emt 0:00:02]} 5. g3 {[%emt 0:03:26]} Nd7 {[%emt 0:01:48]} 6. Bg2 {[%emt 0:02:56] A41: 1 d4 d6: Tartakower System and Modern Defence.} Nh6 {[%emt 0:01:15]} 7. e4 {[%emt 0:03:08]} O-O {[%emt 0:00:42]} 8. Nf3 {[%emt 0:10:44] [#] White has an edge.} a5 $146 {[%emt 0:01:13]} ({Predecessor:} 8... f5 9. h4 f4 10. Ng5 Nf6 11. gxf4 exf4 12. Ne2 Nhg4 13. Qb3 Nh5 14. Bf3 Be5 {1-0 (40) Milos,G (2510)-Psakhis,L (2565) Palma de Mallorca 1989}) 9. h3 {[%emt 0:06:33]} f5 {[%emt 0:03:18]} 10. Bg5 {[%emt 0:03:35]} Nf6 {[%emt 0:00:20]} 11. Qd2 {[%emt 0:06:08]} (11. exf5 {with more complications.} Nxf5 12. g4 Nd4 13. Nxd4 exd4 14. Qxd4 h6 15. Bxf6 Qxf6 16. Qxf6 Bxf6 17. Nb5) 11... Nf7 {[%emt 0:01:42]} 12. exf5 {[%emt 0:08:35]} gxf5 {[%emt 0:01:07]} 13. O-O-O {[%emt 0:02:49]} Bd7 {[%emt 0:05:30]} (13... a4 $11) 14. h4 {[%emt 0:04:29]} ({Better is} 14. Be3 $1 $14) 14... a4 $15 {[%emt 0:10:35][%cal Ba5a4,Ba4a3][%mdl 32]} 15. h5 {[%emt 0:02:47]} ({White should try} 15. a3 $15) 15... h6 $17 {[%emt 0:02:40]} 16. Be3 {[%emt 0:00:40]} Ng4 {[%emt 0:01:09]} 17. Nh4 {[%emt 0:03:41]} a3 {[%emt 0:01:35]} 18. b3 {[%emt 0:01:45]} Qf6 {[%emt 0:00:10]} 19. Ng6 {[%emt 0:04:46]} Rfe8 {[%emt 0:01:29]} 20. Bf1 {[%emt 0:04:07] [#]} (20. Bh3 $17 {is a better defense.}) 20... f4 $1 $19 {[%emt 0:03:29]} 21. gxf4 {[%emt 0:01:55]} Nxe3 {[%emt 0:00:07][%mdl 64] Remove Defender} ({Stronger than} 21... exf4 22. Bd4 Qxd4 23. Qxd4 Bxd4 24. Rxd4 $15) 22. fxe3 {[%emt 0:02:00]} exf4 {[%emt 0:00:06][%mdl 64] Discovered Attack} 23. Qd4 {[%emt 0:01:08]} (23. exf4 Qxc3+ 24. Qxc3 Bxc3 25. Rg1) 23... Qg5 {[%emt 0:01:36]} 24. exf4 {[%emt 0:05:35]} Bxd4 {[%emt 0:00:08] This bishop pair is nice.} 25. fxg5 {[%emt 0:00:07]} Bxc3 {[%emt 0:00:07]} 26. gxh6 {[%emt 0:00:26]} Bb2+ {[%emt 0:00:13]} 27. Kd2 {[%emt 0:00:31]} Nxh6 {[%emt 0:00:12]} 28. Bd3 {[%emt 0:00:53]} Bf5 {[%emt 0:00:17]} 29. Rhg1 {[%emt 0:00:42]} Bxd3 {[%emt 0:00:41]} 30. Kxd3 {[%emt 0:01:07]} Kh7 {[%emt 0:00:01]} 31. Rd2 $2 {[%emt 0:01:41]} (31. Rdf1) 31... Rg8 {[%emt 0:01:13]} (31... Nf5 $142 32. Rgd1 Re3+ 33. Kc2 Kh6) 32. Rf2 {[%emt 0:00:52]} Rg7 $2 {[%emt 0:00:59]} (32... Rae8 $19 {And now ...Rg7 would win.} 33. Rf4 c6) 33. Rgf1 $2 {[%emt 0:02:22][%mdl 8192]} (33. Rf8 $1 $15 Rg8 34. Rgf1) 33... Ng4 {[%emt 0:00:26]} 34. Nf8+ {[%emt 0:02:17]} (34. Rf4 {was necessary.} Ne5+ 35. Nxe5 Bxe5 36. Rf7) 34... Kg8 {[%emt 0:00:44]} 35. Rf4 {[%emt 0:00:33]} Ne5+ {[%emt 0:00:05]} 36. Ke4 {[%emt 0:00:39]} Nd7 {[%emt 0:01:04]} 37. Ng6 {[%emt 0:05:02]} Re8+ {[%emt 0:02:36]} 38. Kf5 $2 {[%emt 0:00:46]} (38. Kd3) 38... Ne5 {[%emt 0:00:26]} 39. Kg5 {[%emt 0:01:52] [#] Strongly threatening Rf8+.} Nxg6 {[%emt 0:02:32]} 40. hxg6 {[%emt 0:00:09]} Rge7 {[%emt 0:00:05]} 41. Rf7 {[%emt 0:01:44]} Bg7 {[%emt 0:00:17]} 42. R1f2 {[%emt 0:00:46]} c6 {[%emt 0:00:06]} 43. dxc6 {[%emt 0:01:31]} bxc6 {[%emt 0:00:02]} 44. R7f5 {[%emt 0:00:20]} (44. Rxe7 $142 Rxe7 45. Rd2) 44... Re5 {[%emt 0:00:14]} 45. Rxe5 {[%emt 0:00:17]} (45. c5 $142 Rxc5 46. Rxc5 dxc5 47. Kh4) 45... dxe5 {[%emt 0:00:23][%cal Bd6e5,Be5e4,Be4e3][%mdl 4128] Endgame KRB-KR} 46. Re2 {[%emt 0:00:17]} e4 {[%emt 0:00:04]} 47. Re3 {[%emt 0:00:46]} Bd4 {[%emt 0:00:08]} 48. Re2 {[%emt 0:00:20]} c5 {[%emt 0:00:05] ( -> ...e3)} 49. Kf4 {[%emt 0:00:45]} e3 {[%emt 0:00:06] Threatens to win with ...Rf8+.} 50. Kf5 {[%emt 0:00:42]} Kg7 {[%emt 0:00:14] Black mates.} 51. Kg5 {[%emt 0:00:18]} Rf8 {[%emt 0:00:05]} 52. Rh2 {[%emt 0:00:15]} Rf2 {[%emt 0:00:22]} 53. Rh7+ {[%emt 0:00:07]} Kg8 {[%emt 0:00:06]} 54. Re7 {[%emt 0:00:30]} Bf6+ {[%emt 0:00:04]} 55. Kh6 {[%emt 0:00:41]} Rh2# {[%emt 0:00:05] Weighted Error Value: White=0.62/Black=0.35} 0-1

[Event "13th Chennai Open 2022"]
[Site "Chennai"]
[Date "2022.06.19"]
[Round "1.10"]
[White "Laxman, R.R."]
[Black "Rajesh, Anirudh"]
[Result "1/2-1/2"]
[ECO "D11"]
[WhiteElo "2420"]
[BlackElo "1575"]
[Annotator "TA"]
[PlyCount "69"]
[EventDate "2022.06.19"]
[EventType "swiss"]
[EventCountry "IND"]
[SourceTitle "playchess.com"]
[Source "ChessBase"]
[SourceQuality "1"]
[TimeControl "5400+30"]

{[%evp 9,69,22,30,2,8,0,0,0,20,-20,19,27,33,6,0,2,37,0,0,0,0,0,0,-37,0,0,0,0,25,10,28,15,27,-14,0,-29,-20,-54,-14,-50,-42,-81,-85,-79,-91,-79,-10,-10,0,-12,0,-69,-45,-42,-41,-56,-45,-87,-87,-188,-171,-262]} 1. d4 {[%emt 0:00:03]} d5 {[%emt 0:00:09]} 2. Nf3 {[%emt 0:00:06]} Nf6 {[%emt 0:00:06]} 3. c4 {[%emt 0:00:05]} c6 {[%emt 0:00:03]} 4. e3 {[%emt 0:00:09]} Bg4 {[%emt 0:00:26]} 5. h3 {[%emt 0:00:46]} Bh5 {[%emt 0:00:07]} 6. cxd5 {[%emt 0:00:47] D11: Slav Defence: 3 Nf3 sidelines and 3...Nf6 4 e3 Bg4.} cxd5 {[%emt 0:00:03]} 7. Qb3 {[%emt 0:00:08]} Qc7 {[%emt 0:06:46]} 8. Nc3 {[%emt 0:00:34] The position is equal.} e6 {[%emt 0:01:04]} 9. Bd2 {[%emt 0:04:01] [#]} (9. g4 {keeps more tension.} Bg6 10. Ne5 a6 11. h4) 9... a6 $146 {[%emt 0:07:18]} ({Predecessor:} 9... Bxf3 10. gxf3 Be7 11. O-O-O Nc6 12. Kb1 a6 13. Na4 b5 14. Nc5 O-O 15. Rc1 Rfc8 {½-½ (45) Neale,M (2130)-Olano Aizpurua,J (2176) ICCF email 2016}) 10. Rc1 {[%emt 0:01:12][%cal Oc3d5] [#] Black must now prevent Nxd5!} Nc6 $1 {[%emt 0:00:33]} 11. g4 {[%emt 0:08:41]} (11. Ne5 $5) 11... Bg6 {[%emt 0:01:03]} 12. Ne5 {[%emt 0:00:17]} Bd6 {[%emt 0:08:35]} 13. Nxg6 {[%emt 0:00:45]} hxg6 {[%emt 0:00:22]} 14. g5 {[%emt 0:01:56]} Ng8 {[%emt 0:02:56][%cal Bf6g8,Bg8e7,Be7f5,Bf5h4,Bh4f3][%mdl 32]} 15. Bd3 {[%emt 0:04:25]} Nge7 {[%emt 0:02:54]} 16. Ne2 {[%emt 0:00:21][%cal Bc3e2,Be2g1,Bg1f3][%mdl 32]} Rd8 {[%emt 0:18:18]} 17. f4 {[%emt 0:00:46]} Nf5 {[%emt 0:06:13]} 18. Kf2 {[%emt 0:00:46]} Qd7 {[%emt 0:01:49]} 19. Ng1 {[%emt 0:02:21]} f6 {[%emt 0:01:04]} 20. Nf3 {[%emt 0:00:11]} Kf7 {[%emt 0:00:43]} 21. a3 {[%emt 0:01:02]} Nh4 {[%emt 0:01:27]} 22. Be2 {[%emt 0:02:19]} Nxf3 {[%emt 0:03:15]} 23. Bxf3 {[%emt 0:00:05]} Rh4 {[%emt 0:01:00]} 24. gxf6 {[%emt 0:01:56]} gxf6 {[%emt 0:00:19][%cal Bg7f6,Bf6f5][%mdl 32]} 25. Bg4 {[%emt 0:00:41]} Rdh8 {[%emt 0:01:35]} 26. Kg2 {[%emt 0:00:08]} f5 {[%emt 0:01:25]} 27. Bf3 {[%emt 0:00:02]} Rg8 {[%emt 0:07:24]} (27... R4h7 $17) 28. Be1 $11 {[%emt 0:00:42]} Rh7 {[%emt 0:00:16]} 29. h4 {[%emt 0:00:09]} Be7 {[%emt 0:00:40]} 30. Bg3 {[%emt 0:00:17]} (30. Rc2 $11) 30... Rgh8 $36 {[%emt 0:01:03][%cal Re7h4][%mdl 2048] Black fights for an advantage.} (30... Na5 $5 {[%cal Ra5b3]} 31. Qc3 Nc4 $11) 31. Rh3 {[%emt 0:00:02]} Na5 {[%emt 0:01:31]} 32. Qc3 {[%emt 0:02:49]} Nc4 {[%emt 0:02:31]} 33. Rch1 {[%emt 0:00:02]} Rc8 {[%emt 0:01:45][%cal Oc4a3]} 34. h5 {[%emt 0:00:39]} (34. Be2 $17) 34... g5 $19 {[%emt 0:00:23]} 35. Be2 {[%emt 1:08:47][%mdl 32768] Weighted Error Value: White=0.21 (precise) /Black=0.13 (very precise) . An unexpected result.} (35. fxg5 $142 Bxg5 36. Bf4 Bxf4 37. exf4) 1/2-1/2